Cogmind - Beta 17 @@@ ROGUE MODE // 2026.06.27 @ 23:29:12 Player: kite Result: Destroyed self with Cooled Deuterium Engine chain reaction Performance ------------- Evolutions (4) 2000 Regions Visited (15) 3000 Robots Destroyed (195) 975 Value Destroyed (7189) 7189 Prototype IDs (8) 160 Alien Tech Used (0) 0 Bonus (-1414) -1414 TOTAL SCORE: 11910 Bonus ------- High Alert Combat Kills 460 Follower Combat Kills 1672 Entered Garrisons 200 Friendly Fire -3746 Cogmind --------- Core Integrity 0/850 Matter 270/300 Energy 100/100 System Corruption 6% Temperature Cool (21) Movement Walking (190) Ox1 Location -6/Hub_04(d) Parts ------- > --- POWER (1) -------- (None) > --- PROPULSION (5) --- Carbon-fiber Leg Flexi-carbon Leg > --- UTILITY (5) ------ High-capacity Storage Unit Advanced Signal Interpreter Transmission Jammer Centrium Medium Armor Plating Improved Hacking Suite > --- WEAPON (4) ------- Shock Bomb Launcher Great Axe Great Axe Great Axe > --- INVENTORY (20) --- Cooled Deuterium Engine Light Angular Momentum Engine Quantum Reactor Light Treads Advanced Energy Well (500) System Restoration Module Antimatter Cannon Mini Grenade Launcher Great Axe Great Axe Great Axe Peak State ------------ > --- POWER ------------ Quantum Reactor > --- PROPULSION ------- Carbon-fiber Leg Carbon-fiber Leg Flexi-carbon Leg Flexi-carbon Leg Armored Leg > --- UTILITY ---------- High-capacity Storage Unit Advanced Signal Interpreter Advanced Melee Analysis Suite Centrium Medium Armor Plating Improved Hacking Suite > --- WEAPON ----------- Chainsword Ripper Great Axe Great Axe > --- INVENTORY -------- Quantum Reactor Carbon-fiber Leg Carbon-fiber Leg Flexi-carbon Leg Flexi-carbon Leg Advanced Energy Well Advanced Sensor Array Microactuators Force Booster Improved Hacking Suite Advanced System Shield Shock Bomb Launcher Shock Bomb Launcher Mini Grenade Launcher Great Axe Great Axe Great Axe Great Axe Great Axe Great Axe [Rating: 79] Favorites ----------- Power Heavy Ion Engine Engine Heavy Ion Engine Power Core Light Nuclear Core Reactor Quantum Reactor Propulsion Carbon-fiber Leg Treads Light Treads Leg Carbon-fiber Leg Utility Large Storage Unit Device Force Booster Storage Large Storage Unit Processor Advanced Melee Analysis Suite Hackware Improved Hacking Suite Protection Core Shielding Weapon Improved Assault Rifle Energy Gun Beam Rifle Ballistic Gun Improved Assault Rifle Ballistic Cannon Antimatter Cannon Launcher Shock Bomb Launcher Impact Weapon Heavy Mace Slashing Weapon Great Axe Piercing Weapon Makeshift Spear Build | -11 -10 -10 -9 -9 -9 -8 -8 -8 -8 -8 -6 -6 -6 -6 -6 ------- Run | Yrd Mat Min Mat Min Exi Min Mat Sto Gar Rec Fac Ext Cet Arc Hub Slots Evolved 8 | . . . 2 . . . 2 . . . 4 . . . . Power . | . . . . . . . . . . . . . . . . Propulsion 3 | . . . 1 . . . 1 . . . 1 . . . . Utility 3 | . . . . . . . 1 . . . 2 . . . . Weapon 2 | . . . 1 . . . . . . . 1 . . . . Parts Attached 161 | 4 6 3 13 . 1 1 12 20 22 . 25 26 5 9 14 Power 16 | 1 . 1 3 . . . 1 1 . . 2 3 1 2 1 Engine 10 | 1 . . 3 . . . 1 1 . . 1 2 . . 1 Core 3 | . . 1 . . . . . . . . 1 1 . . . Reactor 3 | . . . . . . . . . . . . . 1 2 . Propulsion 56 | 2 . . 7 . . 1 5 8 10 . 4 11 . 2 6 Treads 2 | 2 . . . . . . . . . . . . . . . Leg 54 | . . . 7 . . 1 5 8 10 . 4 11 . 2 6 Wheel . | . . . . . . . . . . . . . . . . Hover . | . . . . . . . . . . . . . . . . Flight . | . . . . . . . . . . . . . . . . Utility 45 | 1 3 1 . . 1 . 3 4 5 . 12 5 3 4 3 Device 15 | . . . . . . . . 1 1 . 5 3 1 3 1 Storage 5 | 1 1 . . . 1 . . . . . 1 . 1 . . Processor 5 | . . . . . . . . . 1 . 3 1 . . . Hackware 5 | . 1 . . . . . . . . . 1 . . 1 2 Protection 15 | . 1 1 . . . . 3 3 3 . 2 1 1 . . Artifact . | . . . . . . . . . . . . . . . . Weapon 44 | . 3 1 3 . . . 3 7 7 . 7 7 1 1 4 Energy Gun 2 | . . . . . . . . 1 1 . . . . . . Energy Cannon . | . . . . . . . . . . . . . . . . Ballistic Gun 13 | . 3 . 3 . . . 2 4 1 . . . . . . Ballistic Cannon 1 | . . . . . . . . . . . . . . . 1 Launcher 7 | . . 1 . . . . 1 1 . . 3 . . . 1 Special Weapon . | . . . . . . . . . . . . . . . . Impact Weapon 5 | . . . . . . . . 1 1 . 2 1 . . . Slashing Weapon 15 | . . . . . . . . . 3 . 2 6 1 1 2 Piercing Weapon 1 | . . . . . . . . . 1 . . . . . . Special Melee Weapon . | . . . . . . . . . . . . . . . . Unidentified Prototypes 8 | . 1 . 1 . . . . 1 . . . . 3 . 2 Corrupted Parts 2 | . . . . . . . . . . . . . . 2 . System Corruption 11 | . . . . . . . . . . . . . . 11 . Parts Lost 50 | . . . 3 . . . 2 5 5 . 2 11 . . 22 Power 3 | . . . 1 . . . . . . . . 1 . . 1 Propulsion 22 | . . . . . . . 1 . 4 . . 4 . . 13 Utility 8 | . . . . . . . . 1 . . . 3 . . 4 Weapon 17 | . . . 2 . . . 1 4 1 . 2 3 . . 4 Highest Loss Streak 13 | . . . 1 . . . 2 2 5 . 2 4 . . 13 To Critical Strikes 2 | . . . . . . . . . . . . . . . 2 Average Backups 15 | 3 8 13 11 15 15 15 14 14 14 14 17 18 19 19 14 Power . | . 1 1 1 1 1 1 1 . . . . . 1 1 1 Propulsion 4 | . 2 4 2 4 4 4 4 4 3 3 4 6 4 4 2 Utility 4 | . 2 3 3 4 4 4 2 2 3 7 8 5 2 5 3 Weapon 5 | 2 2 3 4 6 6 6 6 7 7 4 4 7 10 9 6 Tool/Special . | . . . . . . . . . . . . . . . . Unused Backups 36 | . 3 2 2 1 . . 2 1 5 1 4 7 1 2 5 Power 8 | . 1 . 1 . . . . . 2 . . 1 1 . 2 Propulsion 8 | . . 2 . . . . 1 . 2 1 . 1 . . 1 Utility 11 | . . . . . . . 1 1 1 . 3 3 . 1 1 Weapon 9 | . 2 . 1 1 . . . . . . 1 2 . 1 1 Tool/Special . | . . . . . . . . . . . . . . . . Average Slot Usage (%) 98 | . 96 100 99 100 100 100 98 99 98 100 99 96 100 97 96 Engine 6 | . 14 1 8 11 11 11 9 9 9 9 3 4 4 . 1 Core 1 | . . 12 2 . . . . . . . 2 1 . . . Treads 4 | . 28 28 . . . . . . . . . . . . . Leg 27 | . . . 32 33 33 33 35 36 35 36 32 30 33 33 30 Device 3 | . . . . . . . . . 5 9 6 6 4 3 9 Storage 9 | . 14 14 11 11 11 11 9 9 9 9 6 6 7 6 6 Processor 4 | . . . . . . . . . 1 9 14 13 13 13 7 Protection 9 | . 8 13 11 11 11 11 17 17 10 . 3 5 6 4 . Ballistic Gun 15 | . 26 28 32 33 33 33 25 25 10 . . . . . . Impact Weapon 1 | . . . . . . . . . 3 . 3 2 . . . Slashing Weapon 8 | . . . . . . . . . 5 18 13 21 21 26 25 Piercing Weapon 1 | . . . . . . . . . 2 9 5 1 . . . Peak Build Rating 79 | 4 14 15 23 22 22 24 28 30 36 37 66 67 78 79 78 Average Rating 36 | 3 12 14 17 22 22 22 26 25 32 36 57 61 69 73 69 On Entrance 33 | . 4 14 15 22 22 22 24 26 30 36 37 65 63 75 77 Avg Prop Armor Cover (%) . | . . . . . . . . . . . . . . . . Naked Turns . | . . . . . . . . . . . . . . . . Heaviest Build 88 | 10 36 32 38 38 38 38 44 44 57 36 74 80 78 86 88 Greatest Support 90 | 40 40 40 45 45 45 50 60 60 60 60 82 82 76 86 90 Greatest Overweight (x) 1 | . . . 1 . . . . . 1 . . 1 1 1 1 Average Overweight (x) . | . . . . . . . . . . . . . . . . Largest Inventory Capacity 20 | 8 15 15 15 15 15 15 15 15 15 15 20 20 20 20 20 Average Capacity 16 | 6 11 15 15 15 15 15 15 15 15 15 18 20 20 20 20 Most Carried 20 | 6 13 14 15 15 15 15 15 15 15 15 20 20 20 20 20 Average Carried 15 | 3 8 13 11 15 15 15 14 14 14 14 17 18 19 19 14 Final Capacity 20 | 8 15 15 15 15 15 15 15 15 15 15 20 20 20 20 20 Final Carried 20 | 6 13 14 15 15 15 15 15 15 15 15 19 20 20 20 11 Class Distribution -------------------- 30% | Tank 20% | Scavenger-Gladiator 20% | Mutant 11% | Commander-Gladiator 6% | Gladiator 3% | Scavenger-Mutant Dominant Class ---------------- Mutant | -10/Materials Mutant | -10/Mines Tank | -9/Materials Tank | -9/Mines Tank | -9/Exiles Tank | -8/Mines Tank | -8/Materials Tank | -8/Storage Scavenger-Gladiator | -8/Garrison Scavenger-Gladiator | -8/Recycling Scavenger-Gladiator | -6/Factory Commander-Gladiator | -6/Extension Commander-Gladiator | -6/Cetus Scavenger-Gladiator | -6/Archives Scavenger-Gladiator | -6/Hub_04(d) Resources | -11 -10 -10 -9 -9 -9 -8 -8 -8 -8 -8 -6 -6 -6 -6 -6 ----------- Run | Yrd Mat Min Mat Min Exi Min Mat Sto Gar Rec Fac Ext Cet Arc Hub Matter Collected 5475 | 65 396 333 420 168 . 36 440 1239 721 130 499 574 95 150 209 Remotely . | . . . . . . . . . . . . . . . . Salvage Created 8811 | . 473 200 670 116 . 44 737 1321 867 129 1034 1604 212 587 817 Parts 484 | . 40 12 40 18 . 6 53 73 54 15 51 39 10 37 36 Haulers Intercepted 10 | . . . 1 . . . 3 1 . . . 3 . . 2 Recyclers Shooed 1 | . . . . . . . . 1 . . . . . . . Parts Field Recycled . | . . . . . . . . . . . . . . . . Retrieved Matter . | . . . . . . . . . . . . . . . . Parts Self-Destructed . | . . . . . . . . . . . . . . . . Prevented . | . . . . . . . . . . . . . . . . Parts Restored . | . . . . . . . . . . . . . . . . Kills | -11 -10 -10 -9 -9 -9 -8 -8 -8 -8 -8 -6 -6 -6 -6 -6 ------- Run | Yrd Mat Min Mat Min Exi Min Mat Sto Gar Rec Fac Ext Cet Arc Hub Combat Hostiles Destroyed 139 | . 12 10 11 5 . 3 13 25 19 2 13 16 1 . 9 Melee 31 | . . . . . . . . . 1 2 8 12 . . 8 Guns 91 | . 12 7 11 5 . 3 10 25 18 . . . . . . AOE 12 | . . 3 . . . . 3 . . . 4 1 . . 1 Classes Destroyed 17 | . 7 2 3 . . . . 2 2 . . 1 . . . Worker 8 | . . 1 1 2 . . . . . . 3 . . . 1 Builder 9 | . 1 1 1 . . . 1 . . 1 4 . . . . Tunneler 1 | . 1 . . . . . . . . . . . . . . Hauler 10 | . . . 1 . . . 3 1 . . . 3 . . 2 Recycler 6 | . 1 . . . . . . 1 . . 2 2 . . . Operator 10 | . 1 . . . . . . . . . . . . 9 . Watcher 6 | . 2 . 1 . . . . . . . 1 . . . 2 Swarmer 32 | . 6 3 . 5 . 3 3 3 6 . 3 . . . . Cutter 2 | . . . . . . . . . 2 . . . . . . Grunt 54 | . 6 2 6 . . . 8 14 5 . 3 7 . . 3 Brawler 2 | . . . 2 . . . . . . . . . . . . Duelist 2 | . . . . . . . . 1 . . . 1 . . . Sentry 33 | . . . 3 . . . 2 6 6 2 4 6 . . 4 Hunter 5 | . . . . . . . . 1 . . 2 . . . 2 Programmer 3 | . . . . . . . . . 2 . 1 . . . . Behemoth 2 | . . . . . . . . . . . . 2 . . . Cetus Guard 1 | . . . . . . . . . . . . . 1 . . Assembled 5 | . . 5 . . . . . . . . . . . . . Savage 2 | . . . . . . . . . . . . 1 1 . . Butcher 3 | . . . . . . . . . 2 . . . . 1 . Guerrilla 3 | . . . . . . . . . . . . . . 3 . Best Kill Streak 7 | . 4 3 5 3 . 3 7 6 4 1 7 5 1 3 3 Combat Bots Only 6 | . 3 3 3 3 . 3 6 6 4 1 5 5 1 . 3 Max Kills in Single Turn 3 | . 1 2 2 2 . 2 3 1 2 1 2 2 1 1 1 Gunslinging . | . . . . . . . . . . . . . . . . Exploded 3 | . . 2 . . . . 3 . . . 2 1 . . 1 Melee 2 | . . . . . . . . . 1 1 1 2 . . 1 Uniques/NPCs Destroyed 1 | . . . . . . . . . . . . . 1 . . A7 (-6/Cetus) Combat | -11 -10 -10 -9 -9 -9 -8 -8 -8 -8 -8 -6 -6 -6 -6 -6 -------- Run | Yrd Mat Min Mat Min Exi Min Mat Sto Gar Rec Fac Ext Cet Arc Hub Hostile Shots Fired 1182 | . 46 28 51 14 . 10 47 146 87 2 117 357 10 8 259 Missed 394 | . 13 7 12 8 . 4 12 36 29 . 54 144 4 . 71 Hits 788 | . 33 21 39 6 . 6 35 110 58 2 63 213 6 8 188 Melee 31 | . . 4 2 . . . . 7 4 . . 10 . . 4 Projectile 757 | . 33 17 37 6 . 6 35 103 54 2 63 203 6 8 184 AOE 1 | . . . . . . . . . 1 . . . . . . Critical Strikes 26 | . . . . . . . 2 9 3 . . 5 2 1 4 Part Disruptions 2 | . . 2 . . . . . . . . . . . . . Damage Taken 10951 | . 339 338 543 49 . 98 613 1756 855 31 721 2610 114 225 2659 Core 1415 | . 43 36 97 14 . . 51 190 123 . 133 395 37 . 296 Absorbed by Shields 37 | . . . . . . . . . . . . . 37 . . Redirected to Shielding 44 | . . 7 22 3 . . 12 . . . . . . . . Regen/Repaired (Parts) 151 | . . . 82 . . . . 69 . . . . . . . Core Remaining (%) 68 | 100 . 68 . . . 72 . . . 33 . . . . . Volleys Fired 332 | . 41 30 39 9 . 3 34 104 51 . 6 8 5 . 2 Largest 3 | . 2 2 3 3 . 3 3 3 3 . 2 1 1 . 1 Hottest 113 | . 46 46 69 69 . 69 69 108 113 . 66 36 36 . 36 Shots Fired 839 | . 82 58 112 27 . 9 96 289 144 . 7 8 5 . 2 Gun 811 | . 82 56 112 27 . 9 94 289 142 . . . . . . Cannon . | . . . . . . . . . . . . . . . . Launcher 28 | . . 2 . . . . 2 . 2 . 7 8 5 . 2 Special . | . . . . . . . . . . . . . . . . Kinetic 765 | . 82 56 112 27 . 9 94 287 98 . . . . . . Thermal 46 | . . . . . . . . 2 44 . . . . . . Explosive 7 | . . 2 . . . . 2 . . . 3 . . . . Electromagnetic 21 | . . . . . . . . . 2 . 4 8 5 . 2 Robot Hit Streak 17 | . 10 10 11 4 . 5 11 9 17 . 5 6 1 . . Robot Miss Streak 8 | . 4 4 3 4 . 1 4 6 8 . 1 3 . . 2 Penetration Max . | . . . . . . . . . . . . . . . . Secondary Targets 17 | . . . 1 . . 1 3 6 6 . . . . . . Max Gunslinging Chain 1 | . . . 1 . . 1 1 1 1 . . . . . . Shots Hit Robots 671 | . 52 32 68 10 . 6 58 160 85 5 37 68 14 29 47 Core Hits 319 | . 23 17 26 7 . 4 33 66 37 3 30 30 10 11 22 Critical Kills 3 | . . . 1 . . . 1 1 . . . . . . . Critical Parts Destroyed 2 | . . . . . . . . . . . 1 1 . . . Critical Strikes 30 | . . . 1 . . . 1 1 4 . 4 7 1 1 10 Burn 2 | . . . . . . . . . 2 . . . . . . Destroy 3 | . . . 1 . . . 1 1 . . . . . . . Smash 2 | . . . . . . . . . . . 1 1 . . . Sever 21 | . . . . . . . . . 2 . 1 6 1 1 10 Impale 2 | . . . . . . . . . . . 2 . . . . Melee Attacks 359 | . . . . . . . . 3 71 5 76 79 15 36 74 Impact 98 | . . . . . . . . 3 53 . 27 15 . . . Slashing 220 | . . . . . . . . . 15 . 24 56 15 36 74 Piercing 41 | . . . . . . . . . 3 5 25 8 . . . Sneak Attacks 75 | . . . . . . . . . 9 4 8 10 13 24 7 Combat Hostiles 1 | . . . . . . . . . . . . 1 . . . Follow-up Attacks 61 | . . . . . . . . . 2 . 10 20 5 6 18 Damage Inflicted 18519 | . 816 611 1050 165 . 125 1053 2033 1574 273 1736 3547 1019 2321 2196 Guns 6728 | . 813 444 1046 165 . 103 856 2033 1268 . . . . . . Cannons . | . . . . . . . . . . . . . . . . Explosions 1671 | . . 167 . . . . 196 . 39 . 496 396 178 . 199 Melee 10090 | . . . . . . . . . 267 273 1240 3151 841 2321 1997 Ramming 30 | . 3 . 4 . . 22 1 . . . . . . . . Kinetic 6309 | . 813 444 1046 165 . 103 856 2015 867 . . . . . . Thermal 458 | . . . . . . . . 18 440 . . . . . . Explosive 682 | . . 167 . . . . 196 . . . 319 . . . . Electromagnetic 950 | . . . . . . . . . . . 177 396 178 . 199 Impact 1120 | . . . . . . . . . . . 529 591 . . . Slashing 8083 | . . . . . . . . . 191 . 375 2358 841 2321 1997 Piercing 887 | . . . . . . . . . 76 273 336 202 . . . Highest Corruption 11 | . 1 1 . . . . 5 5 6 6 1 11 . 11 6 Average Corruption 3 | . 1 1 . . . . 2 5 5 6 1 5 . 8 5 Corruption Purged 22 | . . . . . . . . . . . . 11 . 11 . Corruption Blocked . | . . . . . . . . . . . . . . . . Effects 157 | . 6 10 . . . . 1 24 51 15 4 23 . 11 12 Message Errors 43 | . 3 3 . . . . . 9 9 5 3 3 . 4 4 Matter Fused 36 | . 2 1 . . . . 1 7 11 4 1 3 . . 6 Heat Flow Errors 15 | . . 1 . . . . . 3 7 1 . 1 . 2 . Energy Discharges 18 | . . . . . . . . 1 8 2 . 4 . 3 . Parts Rejected 1 | . . . . . . . . . . . . 1 . . . Parts Fused 5 | . . 1 . . . . . 1 . . . 2 . . 1 Data Loss (minor) 23 | . 1 2 . . . . . 1 9 3 . 6 . 1 . Data Loss (major) 2 | . . . . . . . . . . . . . . 1 1 Misfires 4 | . . 2 . . . . . . 2 . . . . . . Alerts 4 | . . . . . . . . 1 1 . . 2 . . . Misdirections 1 | . . . . . . . . . . . . 1 . . . Weapon Failures 5 | . . . . . . . . 1 4 . . . . . . Overload Shots . | . . . . . . . . . . . . . . . . Overflow Damage 1119 | . . 23 . . . . 16 . . 32 207 174 44 573 50 Projectiles . | . . . . . . . . . . . . . . . . Explosions 39 | . . 23 . . . . 16 . . . . . . . . Melee 1080 | . . . . . . . . . . 32 207 174 44 573 50 Knockbacks 5 | . . . . . . . . . . . 3 2 . . . Impact 5 | . . . . . . . . . . . 3 2 . . . Kinetic . | . . . . . . . . . . . . . . . . Secondary . | . . . . . . . . . . . . . . . . Self-Inflicted Damage 209 | . . . . . . . 40 . 62 . . . . . 107 Shots 6 | . . . . . . . 1 . 2 . . . . . 3 Rammed 1 | . 1 . . . . . . . . . . . . . . Targets Rammed 8 | . 1 . 1 . . 5 1 . . . . . . . . Kicked 7 | . . . 1 . . 5 1 . . . . . . . . Crushed . | . . . . . . . . . . . . . . . . Highest Temperature 632 | . 42 115 62 50 . 26 254 632 199 157 6 117 . 245 . Average Temperature 75 | . 18 27 15 16 . 12 73 113 50 79 6 31 . 112 . Received Heat Transfer 2991 | . 90 116 210 . . . 306 819 153 9 123 715 . 27 423 Effects 15 | . . . . . . . . 15 . . . . . . . Shutdowns 2 | . . . . . . . . 2 . . . . . . . Energy Bleed 4 | . . . . . . . . 4 . . . . . . . Interference 2 | . . . . . . . . 2 . . . . . . . Matter Decay 2 | . . . . . . . . 2 . . . . . . . Short Circuit 1 | . . . . . . . . 1 . . . . . . . Damage (minor) 1 | . . . . . . . . 1 . . . . . . . Damage (major) 3 | . . . . . . . . 3 . . . . . . . Siege Activations . | . . . . . . . . . . . . . . . . Martial Activations . | . . . . . . . . . . . . . . . . Shielding Activations . | . . . . . . . . . . . . . . . . Robots Disrupted . | . . . . . . . . . . . . . . . . Combat Hostiles . | . . . . . . . . . . . . . . . . Robots Corrupted 8 | . . . 1 . . . . . . . 2 4 1 . . Combat Hostiles 5 | . . . . . . . . . . . 1 3 1 . . Parts Fried 12 | . . . 2 . . . . . . . 5 5 . . . Impact Corruptions 16 | . . . 1 . . . . . . . 7 8 . . . Robots Melted . | . . . . . . . . . . . . . . . . Combat Hostiles . | . . . . . . . . . . . . . . . . Parts Melted 8 | . . . . . . . . . 6 . . 2 . . . Heat Transferred 1197 | . . . . . . . . 37 1160 . . . . . . Parts Sabotaged . | . . . . . . . . . . . . . . . . Parts Stolen . | . . . . . . . . . . . . . . . . Parts Stripped . | . . . . . . . . . . . . . . . . Power Chain Reactions 6 | . . . . . . . . . 4 . 1 . . . 1 Alert | -11 -10 -10 -9 -9 -9 -8 -8 -8 -8 -8 -6 -6 -6 -6 -6 ------- Run | Yrd Mat Min Mat Min Exi Min Mat Sto Gar Rec Fac Ext Cet Arc Hub Maximum Alert Level 5 | . . . . . . . 1 2 5 3 2 2 2 1 . Low Security (%) 56 | 100 100 100 100 100 . 100 80 16 . . 37 19 . 97 100 Level 1 22 | . . . . . . . 19 79 . . 52 72 44 2 . Level 2 8 | . . . . . . . . 4 9 75 9 8 55 . . Level 3 3 | . . . . . . . . . 15 24 . . . . . Level 4 5 | . . . . . . . . . 46 . . . . . . Level 5 3 | . . . . . . . . . 27 . . . . . . High Security . | . . . . . . . . . . . . . . . . Max Security . | . . . . . . . . . . . . . . . . Peak Influence 1660 | . 94 77 105 60 . 60 252 436 1660 777 422 656 499 200 54 Initial 747 | . . 16 . 14 . . . 59 277 747 331 185 361 135 7 Average 303 | . 44 8 44 9 . 4 135 237 1333 647 252 278 416 118 15 Influence Increases 6774 | . 365 160 417 125 . 70 413 828 1633 105 690 1209 188 219 352 Destroy 0b10 Robot/C 3580 | . 240 100 240 100 . 60 260 520 720 40 260 700 80 80 180 Destroy 0b10 Robot/NC 275 | . 30 10 25 10 . . 20 10 . 5 50 40 5 45 25 Destroy Leader 570 | . 64 20 76 . . 10 56 112 20 . 72 72 . . 68 Allied During Kill 861 | . . . 28 . . . . 70 307 . . 311 85 60 . Successful Hack 109 | . . . 16 . . . 14 3 14 . 16 21 . . 25 Select Force Hacks 60 | . . . . . . . . . . 60 . . . . . Disable Machine 210 | . . 15 15 15 . . 15 30 60 . 15 . 15 30 . Anti-Garrison Action 550 | . . . . . . . . . 400 . 150 . . . . Destroy Structure 174 | . 1 15 2 . . . 18 8 67 . 27 20 3 4 9 Advance Influence 100 | . . . . . . . . . . . 100 . . . . Partial Spotted 15 | . . . 15 . . . . . . . . . . . . Lose Combat Pursuer 270 | . 30 . . . . . 30 75 45 . . 45 . . 45 Influence Decreases 6740 | . 322 203 380 162 . 70 270 544 400 1215 861 941 496 538 338 Entered New Map 2213 | . . 27 . 23 . . . 84 150 913 319 194 286 204 13 Time Decay 3712 | . 322 176 310 139 . 70 250 410 . 302 522 577 190 254 190 Lost Part 415 | . . . 30 . . . 20 50 50 . 20 110 . . 135 Lost Ally 400 | . . . 40 . . . . . 200 . . 60 20 80 . Squads Dispatched 25 | . 3 . 1 . . 1 . 4 . . 8 4 . . 4 Investigation 9 | . 1 . 1 . . . . 2 . . 1 3 . . 1 Extermination 3 | . . . . . . . . . . . 2 . . . 1 Reinforcement 10 | . 2 . . . . 1 . 2 . . 2 1 . . 2 Assault 2 | . . . . . . . . . . . 2 . . . . Garrison 1 | . . . . . . . . . . . 1 . . . . Intercept . | . . . . . . . . . . . . . . . . Searches Triggered . | . . . . . . . . . . . . . . . . Construction Impeded 2 | . . . . . . 1 . . . . 1 . . . . Haulers Reinforced 1 | . . . . . . . . . . . . . . . 1 Active Scanning Responses . | . . . . . . . . . . . . . . . . Cargo Convoy Interrupts . | . . . . . . . . . . . . . . . . Stealth | -11 -10 -10 -9 -9 -9 -8 -8 -8 -8 -8 -6 -6 -6 -6 -6 --------- Run | Yrd Mat Min Mat Min Exi Min Mat Sto Gar Rec Fac Ext Cet Arc Hub Distress Signals 13 | . 1 1 . . . . 1 2 1 . 3 2 1 . 1 Communications Jammed 14 | . . . . . . . . . . . . . . . 14 Distress Signals 14 | . . . . . . . . . . . . . . . 14 Times Spotted 244 | . 19 11 18 8 . 4 19 35 38 1 19 40 7 6 19 Peak Tracking Total 7 | . 3 3 4 5 . 3 6 7 5 . 4 5 5 2 5 Tactical Retreats 13 | . 2 1 . . . . 1 3 3 . . 2 . . 1 Traps | -11 -10 -10 -9 -9 -9 -8 -8 -8 -8 -8 -6 -6 -6 -6 -6 ------- Run | Yrd Mat Min Mat Min Exi Min Mat Sto Gar Rec Fac Ext Cet Arc Hub Traps Triggered 13 | . 3 . . . . . 4 1 2 . . 3 . . . Indirectly . | . . . . . . . . . . . . . . . . Trap Hack Attempts . | . . . . . . . . . . . . . . . . Triggered . | . . . . . . . . . . . . . . . . Disarmed . | . . . . . . . . . . . . . . . . Reprogrammed . | . . . . . . . . . . . . . . . . Reused . | . . . . . . . . . . . . . . . . Traps Extracted . | . . . . . . . . . . . . . . . . Installed . | . . . . . . . . . . . . . . . . Triggered . | . . . . . . . . . . . . . . . . Machines | -11 -10 -10 -9 -9 -9 -8 -8 -8 -8 -8 -6 -6 -6 -6 -6 ---------- Run | Yrd Mat Min Mat Min Exi Min Mat Sto Gar Rec Fac Ext Cet Arc Hub Machines Disabled 24 | . . 1 1 1 . . 1 2 11 . 2 2 1 2 . Max in Single Turn 2 | . . 1 1 1 . . 1 1 2 . 1 1 . . . Garrison Access 1 | . . . . . . . . . . . 1 . . . . Garrison Relay 4 | . . . . . . . . . 4 . . . . . . Phase Generator 1 | . . . . . . . . . 1 . . . . . . Machines Repaired . | . . . . . . . . . . . . . . . . Machines Dismantled . | . . . . . . . . . . . . . . . . Machines Sabotaged . | . . . . . . . . . . . . . . . . Overloaded Fab Kills . | . . . . . . . . . . . . . . . . Hacking | -11 -10 -10 -9 -9 -9 -8 -8 -8 -8 -8 -6 -6 -6 -6 -6 --------- Run | Yrd Mat Min Mat Min Exi Min Mat Sto Gar Rec Fac Ext Cet Arc Hub Machines Accessed 34 | . 4 . 4 . 1 . 3 3 2 2 5 3 . . 7 Terminals 23 | . 4 . 2 . . . 2 1 2 . 3 3 . . 6 Fabricators . | . . . . . . . . . . . . . . . . Repair Stations 2 | . . . 1 . . . . 1 . . . . . . . Recycling Units 2 | . . . . . . . . . . 2 . . . . . Scanalyzers 3 | . . . 1 . . . 1 . . . 1 . . . . Garrison Access 3 | . . . . . . . . 1 . . 1 . . . 1 Total Hacks 82 | . 10 . 6 . 7 . 8 7 5 4 15 6 . . 14 Successful 42 | . 3 . 5 . 7 . 6 3 1 2 7 3 . . 5 Failed 40 | . 7 . 1 . . . 2 4 4 2 8 3 . . 9 Catastrophic 9 | . 1 . 1 . . . 1 . 1 . 1 3 . . 1 Database Lockouts . | . . . . . . . . . . . . . . . . Manual 53 | . 10 . 5 . . . 4 6 . 4 10 . 1 . 13 Terminals 56 | . 10 . 4 . . . 4 4 5 . 10 6 . . 13 Fabricators . | . . . . . . . . . . . . . . . . Repair Stations 3 | . . . 1 . . . . 2 . . . . . . . Recycling Units 4 | . . . . . . . . . . 4 . . . . . Scanalyzers 8 | . . . 1 . . . 4 . . . 3 . . . . Garrison Access 4 | . . . . . . . . 1 . . 2 . . . 1 Terminal Hacks 16 | . 1 . 1 . 7 . 1 . 1 . 2 3 . . . Record 7 | . . . . . 7 . . . . . . . . . . Part Schematic 2 | . 1 . . . . . 1 . . . . . . . . Open Door 3 | . . . . . . . . . . . . 3 . . . Branch Access Points 1 | . . . 1 . . . . . . . . . . . . Terminal Index 1 | . . . . . . . . . . . 1 . . . . Registered Components 1 | . . . . . . . . . . . 1 . . . . Garrison Registry 1 | . . . . . . . . . 1 . . . . . . Fabricator Hacks . | . . . . . . . . . . . . . . . . Repair Station Hacks . | . . . . . . . . . . . . . . . . Recycling Unit Hacks . | . . . . . . . . . . . . . . . . Scanalyzer 6 | . . . 1 . . . 3 . . . 2 . . . . Insert Component 3 | . . . . . . . 2 . . . 1 . . . . Analyze 2 | . . . . . . . 1 . . . 1 . . . . Retrieve Study 1 | . . . 1 . . . . . . . . . . . . Garrison Access Hacks 2 | . . . . . . . . 1 . . . . . . 1 Unlock Access 2 | . . . . . . . . 1 . . . . . . 1 Unauthorized Hacks 18 | . 2 . 3 . . . 2 2 . 2 3 . . . 4 Terminals 14 | . 2 . 2 . . . 2 1 . . 3 . . . 4 Botnet 13 | . 2 . 2 . . . 2 1 . . 3 . . . 3 Sabotage 1 | . . . . . . . . . . . . . . . 1 Fabricators . | . . . . . . . . . . . . . . . . Repair Stations 2 | . . . 1 . . . . 1 . . . . . . . Patch 2 | . . . 1 . . . . 1 . . . . . . . Recycling Units 2 | . . . . . . . . . . 2 . . . . . Tunnel 2 | . . . . . . . . . . 2 . . . . . Scanalyzers . | . . . . . . . . . . . . . . . . Garrison Access . | . . . . . . . . . . . . . . . . Data Cores Recovered . | . . . . . . . . . . . . . . . . Used . | . . . . . . . . . . . . . . . . Hacking Detections 26 | . 4 . 2 . . . 3 1 1 1 5 2 1 . 6 Full Trace Events 6 | . 1 . . . . . . 1 1 . 1 2 . . . Feedback Events . | . . . . . . . . . . . . . . . . Feedback Blocked . | . . . . . . . . . . . . . . . . Robot Schematics Acquired . | . . . . . . . . . . . . . . . . Robots Built . | . . . . . . . . . . . . . . . . Authchips . | . . . . . . . . . . . . . . . . Time . | . . . . . . . . . . . . . . . . Total Robot Build Rating . | . . . . . . . . . . . . . . . . Part Schematics Acquired 4 | . 1 . . . . . 2 . . . 1 . . . . Parts Built . | . . . . . . . . . . . . . . . . Authchips . | . . . . . . . . . . . . . . . . Time . | . . . . . . . . . . . . . . . . Total Part Build Rating . | . . . . . . . . . . . . . . . . Part Studies Acquired 1 | . . . 1 . . . . . . . . . . . . Parts Repaired . | . . . . . . . . . . . . . . . . Time . | . . . . . . . . . . . . . . . . Parts Recycled . | . . . . . . . . . . . . . . . . Recycled Matter . | . . . . . . . . . . . . . . . . Retrieved Matter . | . . . . . . . . . . . . . . . . Retrieved Components . | . . . . . . . . . . . . . . . . Parts Scanalyzed 2 | . . . . . . . 1 . . . 1 . . . . Part Schematics Acquired 2 | . . . . . . . 1 . . . 1 . . . . Parts Damaged 1 | . . . . . . . 1 . . . . . . . . Bothacking | -11 -10 -10 -9 -9 -9 -8 -8 -8 -8 -8 -6 -6 -6 -6 -6 ------------ Run | Yrd Mat Min Mat Min Exi Min Mat Sto Gar Rec Fac Ext Cet Arc Hub Used RIF Installer . | . . . . . . . . . . . . . . . . Robots Hacked . | . . . . . . . . . . . . . . . . Non-combat . | . . . . . . . . . . . . . . . . Combat . | . . . . . . . . . . . . . . . . Robot Hacks Applied . | . . . . . . . . . . . . . . . . Relay Couplers Released 17 | . . . . . . . . . 14 . 3 . . . . Machine Destruction 17 | . . . . . . . . . 14 . 3 . . . . Fabnet Peak Effective % . | . . . . . . . . . . . . . . . . Robots Rewired 17 | . . . . . . . . . 3 . . 14 . . . Allies Hacked . | . . . . . . . . . . . . . . . . Hacks Repelled . | . . . . . . . . . . . . . . . . Allies | -11 -10 -10 -9 -9 -9 -8 -8 -8 -8 -8 -6 -6 -6 -6 -6 -------- Run | Yrd Mat Min Mat Min Exi Min Mat Sto Gar Rec Fac Ext Cet Arc Hub Total Allies 35 | . . 2 . . . . . 10 5 . . 18 . . . Largest Group 13 | . . 2 2 . . . . 10 10 . . 13 13 10 . Highest-Rated Group 508 | . . 43 43 . . . . 173 173 . . 508 508 288 . Highest-Rated Ally 159 | . . 31 31 . . . . 29 29 . . 159 159 39 . Initial Warlord ECA Mod 9 | . . . . . . . . . . 9 7 7 7 7 7 Total Orders . | . . . . . . . . . . . . . . . . Ally Attacks 327 | . . . 9 . . . . 9 119 . . 141 30 19 . Total Damage 5238 | . . . 149 . . . . 131 1505 . . 2451 630 372 . Kills 52 | . . . 2 . . . . 1 17 . . 22 4 6 . Allies Corrupted . | . . . . . . . . . . . . . . . . Allies Melted . | . . . . . . . . . . . . . . . . Intel | -11 -10 -10 -9 -9 -9 -8 -8 -8 -8 -8 -6 -6 -6 -6 -6 ------- Run | Yrd Mat Min Mat Min Exi Min Mat Sto Gar Rec Fac Ext Cet Arc Hub Active Infowar (turns) 2376 | . . . . . . . . . . . 1236 517 . . 623 Sensors 2013 | . . . . . . . . . . . 1236 517 . . 260 Jamming 363 | . . . . . . . . . . . . . . . 363 Robot Analysis Total . | . . . . . . . . . . . . . . . . Derelict Logs Recovered 3 | . . 2 . 1 . . . . . . . . . . . Drone Launches . | . . . . . . . . . . . . . . . . Drone Recoveries . | . . . . . . . . . . . . . . . . Exploration | -11 -10 -10 -9 -9 -9 -8 -8 -8 -8 -8 -6 -6 -6 -6 -6 ------------- Run | Yrd Mat Min Mat Min Exi Min Mat Sto Gar Rec Fac Ext Cet Arc Hub Turns Passed 14203 | 88 935 1517 935 858 211 886 610 989 1723 662 1448 1767 399 546 629 Spaces Moved 8210 | 50 473 688 489 687 174 706 399 491 1018 538 937 881 196 175 308 Core 3 | 3 . . . . . . . . . . . . . . . Treads 1208 | 47 473 688 . . . . . . . . . . . . . Legs 6999 | . . . 489 687 174 706 399 491 1018 538 937 881 196 175 308 Wheels . | . . . . . . . . . . . . . . . . Hover . | . . . . . . . . . . . . . . . . Flight . | . . . . . . . . . . . . . . . . Fastest Speed 50 | 50 160 160 116 121 121 121 108 112 112 120 120 120 120 120 120 Average Speed 131 | 153 160 160 157 121 121 122 119 114 115 120 120 130 165 172 124 Slowest Speed 190 | 160 160 160 190 121 121 126 121 120 190 120 120 190 190 190 190 Overloaded Moves . | . . . . . . . . . . . . . . . . Propulsion Burnouts . | . . . . . . . . . . . . . . . . Robots Hopped . | . . . . . . . . . . . . . . . . Potential Cave-ins . | . . . . . . . . . . . . . . . . Cave-ins Triggered 1 | . . . . . . . . . . . . . . . 1 Exploration Rate (%) 64 | 4 86 98 43 96 50 99 36 71 82 76 20 89 48 87 49 Regions Visited 15 Branch Regions 10 Pre-discovered Areas 5 | . . . . 2 1 . . . . 2 . . . . . Known Exits Taken 7 | . . . 1 . . . 1 1 . . 1 1 1 1 . Unknown Exits Taken 7 | 1 1 1 . 1 1 1 . . . 1 . . . . . Scrap Searched 4 | . . 1 . 2 . 1 . . . . . . . . . Spaces Dug 30 | . . . . . . . . . . . 21 . . . 9 Terrain Destroyed 153 | . . 16 . . . . 18 . 79 . 31 . . . 9 Melee 30 | . . . . . . . . . . . 21 . . . 9 Projectile . | . . . . . . . . . . . . . . . . AOE 123 | . . 16 . . . . 18 . 79 . 10 . . . . Terrain Rammed . | . . . . . . . . . . . . . . . . Walls Destroyed . | . . . . . . . . . . . . . . . . Machines Disabled . | . . . . . . . . . . . . . . . . Actions | -11 -10 -10 -9 -9 -9 -8 -8 -8 -8 -8 -6 -6 -6 -6 -6 --------- Run | Yrd Mat Min Mat Min Exi Min Mat Sto Gar Rec Fac Ext Cet Arc Hub Total 10592 | 59 571 1047 574 697 175 723 479 713 1329 556 1159 1408 252 381 469 Wait 1059 | . 29 321 14 . . 8 7 58 49 . 86 241 21 152 73 Move 8195 | 49 472 687 488 686 173 705 398 491 1016 537 936 880 195 174 308 Hop . | . . . . . . . . . . . . . . . . Pick Up 117 | 6 13 3 8 1 . . 10 7 15 7 14 17 5 5 6 Fast Attach 55 | 4 5 . 2 . . . 3 8 3 . 2 13 4 6 5 Attach 57 | . . . 8 . . . 5 4 6 . 8 11 1 . 14 Detach 9 | . . . . . . . 1 1 . . 1 4 1 1 . Swap 154 | . 1 4 5 . 1 1 6 19 33 . 40 26 3 7 8 Drop 145 | . 9 2 9 1 1 1 14 18 21 7 14 26 9 12 1 Fire 332 | . 41 30 39 9 . 3 34 104 51 . 6 8 5 . 2 Melee 263 | . . . . . . . . 3 68 5 52 51 8 24 52 Ram . | . . . . . . . . . . . . . . . . Kick 7 | . . . 1 . . 5 1 . . . . . . . . Crush 1 | . 1 . . . . . . . . . . . . . . Escape Stasis 5 | . . . . . . . . . . . . 5 . . . Rewire 193 | . . . . . . . . . 67 . . 126 . . . Trap . | . . . . . . . . . . . . . . . . Miscellaneous . | . . . . . . . . . . . . . . . . Route ------- -11/Scrapyard -10/Materials (discovered 4 exits: *Mat x3 / [*Min]) -10/Mines (discovered 3 exits: *Mat x2 / [*Sub]) -9/Materials (discovered 2 exits: *Mat / *Min) -9/Mines (discovered 3 exits: *Mat x2 / *Exi) -9/Exiles -8/Mines (discovered 2 exits: *Mat x2) -8/Materials -8/Storage (discovered 2 exits: [*Fac] / Gar) -8/Garrison (discovered 3 exits: *Rec x3) -8/Recycling -6/Factory -6/Extension (discovered 2 exits: *Fac / *Cet) -6/Cetus -6/Archives (discovered 3 exits: *Fac / *Hub x2) -6/Hub_04(d) (discovered 2 exits: *Fac / Gar) History --------- Turn | Location | Event 2 | -11/Scrapyard | Met Revision 17 18 | -11/Scrapyard | Discovered new exit (range 15) 89 | -11/Scrapyard | Entered Materials 306 | -10/Materials | Build established: Mutant 315 | -10/Materials | Discovered new exit (range 15) 770 | -10/Materials | Discovered new exit (range 3) 893 | -10/Materials | Discovered new exit (range 16) 936 | -10/Materials | Discovered new exit (range 10) 1024 | -10/Materials | Entered Mines 1025 | -10/Mines | Assembled infested the area 1780 | -10/Mines | Discovered new exit (range 6) 1881 | -10/Mines | A weapon hastily lodged in a ceiling crevice suddenly fell to the ground 1989 | -10/Mines | Discovered new exit (range 8) 2175 | -10/Mines | Discovered new exit (range 15) 2252 | -10/Mines | Learned Materials terminal intel 2541 | -10/Mines | Entered Materials 2541 | -9/Materials | Accompanied by 2 allies 2541 | -9/Materials | Evolved 2 slots: Propulsion x1, Weapon x1 2542 | -9/Materials | Loaded intel: 12 terminal locations 2546 | -9/Materials | Led the pair of lost Derelicts to an unsafe place 2835 | -9/Materials | Build established: Tank 3296 | -9/Materials | Discovered new exit (range 10) 3352 | -9/Materials | Identified exit to Mines 3476 | -9/Materials | Entered Mines 3750 | -9/Mines | Deemed a non-threat by the Exiles lab entrance 3750 | -9/Mines | Discovered new exit (range 5) 3813 | -9/Mines | Discovered new exit (range 13) 3928 | -9/Mines | Received a Rocket Launcher from a helpful Derelict 3998 | -9/Mines | Discovered new exit (range 5) 4112 | -9/Mines | Learned location of Storage (-8) 4334 | -9/Mines | Entered Exiles 4364 | -9/Exiles | Met 8R-AWN 4384 | -9/Exiles | Met EX-HEX 4417 | -9/Exiles | Met EX-BIN 4433 | -9/Exiles | Met EX-DEC 4437 | -9/Exiles | Learned location of Zion (-6) 4475 | -9/Exiles | Discovered new exit (range 10) 4545 | -9/Exiles | Entered Mines 4912 | -8/Mines | Discovered new exit (range 9) 5077 | -8/Mines | Discovered new exit (range 13) 5431 | -8/Mines | Entered Materials 5431 | -8/Materials | Evolved 2 slots: Propulsion x1, Utility x1 5432 | -8/Materials | Identified exit to Storage 6041 | -8/Materials | Entered Storage 6914 | -8/Storage | Assisted by bots powering up and referring to "LRC-V3" 6949 | -8/Storage | Discovered new exit (range 6) 7028 | -8/Storage | Identified exit to Garrison 7030 | -8/Storage | Entered Garrison 7030 | -8/Garrison | Accompanied by 10 allies 7062 | -8/Garrison | Discovered new exit (range 86) 7062 | -8/Garrison | Discovered new exit (range 68) 7062 | -8/Garrison | Discovered new exit (range 56) 7119 | -8/Garrison | Garrison Relay disabled 7125 | -8/Garrison | Garrison Relay disabled 7194 | -8/Garrison | P-60 Hacker assimilated allied Trooper 3a 7234 | -8/Garrison | Triggered checkpoint 7287 | -8/Garrison | Lost 5 parts (4n1w) 7294 | -8/Garrison | Triggered checkpoint 7313 | -8/Garrison | Triggered checkpoint 7336 | -8/Garrison | Lost 3 allies 7362 | -8/Garrison | Triggered checkpoint 7387 | -8/Garrison | Core integrity fell below 50% 7421 | -8/Garrison | Lost 3 allies 7464 | -8/Garrison | Triggered checkpoint 7495 | -8/Garrison | Garrison Relay disabled 7509 | -8/Garrison | Triggered checkpoint 7561 | -8/Garrison | Phase Generator disabled 8014 | -8/Garrison | Build established: Scavenger-Mutant 8119 | -8/Garrison | Rescued a captive Derelict 8120 | -8/Garrison | Rescued a captive Derelict 8262 | -8/Garrison | Triggered checkpoint 8273 | -8/Garrison | Garrison Relay disabled 8502 | -8/Garrison | Triggered checkpoint 8518 | -8/Garrison | Spotted B-75 Beast 8584 | -8/Garrison | Lost 3 allies 8619 | -8/Garrison | Build established: Scavenger-Gladiator 8647 | -8/Garrison | Attempted to access garrison exit controls, blocked by remote lockdown 8753 | -8/Garrison | Entered Recycling 9401 | -8/Recycling | Discovered new exit (range 11) 9415 | -8/Recycling | Entered Factory 9415 | -6/Factory | Evolved 4 slots: Propulsion x1, Utility x2, Weapon x1 10606 | -6/Factory | Garrison activated, responded to threat 10790 | -6/Factory | Discovered new exit (range 16) 10806 | -6/Factory | Identified exit to Extension 10863 | -6/Factory | Entered Extension 11107 | -6/Extension | Build established: Gladiator 11401 | -6/Extension | System corruption reached 10% 11431 | -6/Extension | Lost 3 parts (1u2w) 11685 | -6/Extension | Build established: Commander-Gladiator 11979 | -6/Extension | Spotted B-75 Beast 11984 | -6/Extension | Spotted B-75 Beast 11998 | -6/Extension | Destroyed B-75 Beast 12027 | -6/Extension | Destroyed B-75 Beast 12108 | -6/Extension | Rescued a captive Derelict 12113 | -6/Extension | Rescued a captive Derelict 12124 | -6/Extension | Core integrity fell below 50% 12163 | -6/Extension | Lost 4 parts (1p2n1u) 12407 | -6/Extension | Rescued a captive Derelict 12409 | -6/Extension | Rescued a captive Derelict 12510 | -6/Extension | Rescued A7 12561 | -6/Extension | Discovered new exit (range 10) 12563 | -6/Extension | Discovered new exit (range 6) 12603 | -6/Extension | Identified exit to Cetus 12620 | -6/Extension | Identified exit to Factory 12630 | -6/Extension | Entered Cetus 12630 | -6/Cetus | Accompanied by 13 allies (A7) 12635 | -6/Cetus | Acquired a Cetus Manufacturing Module code from A7 12648 | -6/Cetus | Spotted Cetus Guard 12648 | -6/Cetus | Spotted Cetus Guard 12652 | -6/Cetus | Spotted Cetus Guard 12653 | -6/Cetus | Spotted Cetus Guard 12656 | -6/Cetus | Allies destroyed Cetus Guard 12667 | -6/Cetus | Destroyed Cetus Guard 12670 | -6/Cetus | Allies destroyed Cetus Guard 12671 | -6/Cetus | Allies destroyed Cetus Guard 12707 | -6/Cetus | Cetus Manufacturing Module disabled 12751 | -6/Cetus | Failed to start Cetus Manufacturing Module 12823 | -6/Cetus | Discovered new exit (range 15) 12914 | -6/Cetus | Identified exit to Archives 12942 | -6/Cetus | Murdered A7 12943 | -6/Cetus | Extracted ID and sensor layout for unrecognized location from A7's data core 13029 | -6/Cetus | Entered Archives 13029 | -6/Archives | Accompanied by 10 allies 13080 | -6/Archives | Discovered new exit (range 14) 13108 | -6/Archives | Lost 6 allies 13128 | -6/Archives | Discovered exit to Factory (range 14) 13373 | -6/Archives | Build established: Scavenger-Gladiator 13438 | -6/Archives | Discovered new exit (range 16) 13475 | -6/Archives | Identified exit to Hub_04(d) 13531 | -6/Archives | Murdered 4 allies 13575 | -6/Archives | Entered Hub_04(d) 13693 | -6/Hub_04(d) | Crushed by falling debris 13772 | -6/Hub_04(d) | Identified exit to Garrison 13862 | -6/Hub_04(d) | Core integrity fell below 20% 13908 | -6/Hub_04(d) | Lost 13 parts (8n2u3w) 14163 | -6/Hub_04(d) | Discovered exit to Factory (range 12) 14204 | -6/Hub_04(d) | Destroyed self with Cooled Deuterium Engine chain reaction Last Messages --------------- 6J. 14150_ Acquired Lgt. Treads. 14155_ Connecting with Terminal... 14163_ EXIT=FOUND: FACTORY 14175_ 4R/EAYXAVNOGDFG7X7U23Y#GW09V 14184_ Great Axe follow-up attack on Y-54 Guardian. 14188_ Y-54 Guardian Lgt. Treads severed. 14189_ Carbon-fiber Leg destroyed. 14193_ K-01 Serf exits Transfer Station. 14193_ A-15 Conveyor exits Transfer Station. 14194_ Critical hit (Burn: +37). 14196_ Flexi-carbon Leg destroyed. 14201_ Carbon-fiber Leg destroyed. 14201_ Y-54 Guardian destroyed. 14201_ Door malfunctions. 14202_ Shock Bomb Launcher destroyed. 14202_ A-15 Conveyor distress signal jammed. 14204_ Chain reaction triggered in Cld. Deuterium Engine. Map ----- +----------------------------------------------------+ | ?######+#+# #?????????? | | ??????????# #?????????? | | ??????????# #?????????? | | ??????????# #?????????? | | ??????????# ] #?????????? | | ??????????#########+####?????????? | | ??????????????????# #????????????? | | ??????????????????# #????????????? | | ??????????????????# #??##????????? | | ????????????????###+###%#????????? | | ????????????????# ! [![#????????? | | ????????????????# ""#????????? | | ????????????????# ""#????????? | | ????????????????# " " ""#????????? | | ????????????????# " " T#????????? | | ????????????????# " " ""#????????? | | ????????????????# ""#????????? | | ????????????????# " " ""#????????? | | ????????????????# "p" #????????? | | ????????????????# " " ######???? | | ????????????????# # ####? | | ?????????# #######/## """#? | | ?????????# g "#? | | ???????? < A =g "#? | | ?????????# kgl "#? | | ?????????# #######+##@ """#? | | ?????????###???????? # ####? | | ??????????????????? ? ######???? | | ?????????????????? #????????? | | ????????????????? ]?????????? | | ????????????????# ?????????? | | ????????????????# ? #????????? | | ????????????????# ???#????????? | | ????????????????# * ????????????? | | ????????????????# ?????????????? | | ????????????????# ??????????????? | | ????????????????# ???????????????? | | ????????????????##???????????????? | | ?????????????????????????????????? | | ?????????????????????????????????? | | ?????????????????????????????????? | | ?????????????????????????????????? | | ?????????????????????????????????? | | ?????????????????????????????????? | | ?????????????????????????????????? | | ?????????????????????????????????? | | ?????????????????????????????????? | | ?????????????????????????????????? | | #????????????????????????????????? | | #????????????????????????????????? | +----------------------------------------------------+ Best States ------------- Heat Dissipation 56 Energy Generation 25 Energy Capacity 650 Matter Stores 300 Matter Capacity 300 Sight Range 16 Robot Scan Range 16 Terrain Scan Density 10 Jamming Range 12 Armor Coverage 450 Core Shielding 20 Melee Speed Boost 20 Evasion (%) 55 Melee Accuracy 8 Launcher Accuracy 20 Recoil Reduction 2 Force Boost 20 Offensive Hacking 12 Defensive Hacking 14 Item Schematics ----------------- Hcp. Storage Unit | -10/Materials | Hacked Mak. Leg | -8/Materials | Scanalyzed Actuator Array | -8/Materials | Hacked Carbide Saw | -6/Factory | Scanalyzed Robot Schematics ------------------ None Fabricated ------------ Nothing Repaired ---------- Nothing Studied --------- Aluminum Leg | -9/Materials | Hacked Alien Tech Used ----------------- None Achievements -------------- None Challenges ------------ None Game ------ Seed ShiftImpulseSlayer Manual? 0 Play Time 01:22:09 Cumulative 403.6 hours Start 2026.06.27 @ 21:45:43 End 2026.06.27 @ 23:29:12 Sessions 2 Manual Loads 0 Difficulty Rogue Special Mode None Game No. 373 Rogue 373 Adventurer 0 Explorer 0 Win Type - Total 9 Types 6/0/2/0/0/0/0/0/0/1 Lore% 60 Gallery% 67 Achievement% 63 Wizard Run 0 Options --------- Layout 1 ASCII 0 Keyboard 0 Movement Mouse Keybinds 0 Fullscreen 2 Font 24/Smallcaps Map View 50x35 Zoom Use 23% Tactical HUD 1 Map Filters NONE Filters NONE Steam 1 RUN: 38f79731-c5ad-43d5-abc1-58cd7e05b9da